[Event "Titled Tuesday Blitz November 16 2021"]
[White "Kryakvin, Dmitry"]
[Black "Tillyaev, Ulugbek"]
[WhiteFideId "4153278"]
[BlackFideId "14202441"]
[WhiteElo "2372"]
[BlackElo "2341"]
[Result "1/2-1/2"]
[Round "07"]
[TimeControl "180+1"]
[Date "2021.11.16"]
[WhiteClock "0:00:15"]
[BlackClock "0:00:11"]

1. Nf3 {[%clk 0:03:00]}  Nf6 {[%clk 0:02:59]} 2. c4 {[%clk 0:02:59]}  g6 {[%clk 0:02:57]} 3. g3 {[%clk 0:02:58]}  Bg7 {[%clk 0:02:57]} 4. Bg2 {[%clk 0:02:59]}  O-O {[%clk 0:02:57]} 5. O-O {[%clk 0:02:59]}  d6 {[%clk 0:02:56]} 6. Nc3 {[%clk 0:02:58]}  c6 {[%clk 0:02:54]} 7. d3 {[%clk 0:02:57]}  e5 {[%clk 0:02:52]} 8. Rb1 {[%clk 0:02:57]}  a5 {[%clk 0:02:50]} 9. a3 {[%clk 0:02:57]}  Bf5 {[%clk 0:02:45]} 10. b4 {[%clk 0:02:39]}  axb4 {[%clk 0:02:44]} 11. axb4 {[%clk 0:02:38]}  Qc8 {[%clk 0:02:44]} 12. b5 {[%clk 0:02:33]}  Bh3 {[%clk 0:02:42]} 13. bxc6 {[%clk 0:02:30]}  bxc6 {[%clk 0:02:43]} 14. Bd2 {[%clk 0:02:15]}  Bxg2 {[%clk 0:02:35]} 15. Kxg2 {[%clk 0:02:16]}  Re8 {[%clk 0:02:34]} 16. Qb3 {[%clk 0:02:11]}  Nbd7 {[%clk 0:02:28]} 17. Qb7 {[%clk 0:02:10]}  Qxb7 {[%clk 0:02:22]} 18. Rxb7 {[%clk 0:02:09]}  Nc5 {[%clk 0:02:20]} 19. Rb6 {[%clk 0:02:04]}  Rac8 {[%clk 0:02:11]} 20. Be3 {[%clk 0:01:58]}  e4 {[%clk 0:01:58]} 21. dxe4 {[%clk 0:01:44]}  Nfd7 {[%clk 0:01:55]} 22. Bxc5 {[%clk 0:01:20]}  Nxb6 {[%clk 0:01:54]} 23. Bxb6 {[%clk 0:01:19]}  Bxc3 {[%clk 0:01:52]} 24. Rc1 {[%clk 0:01:15]}  Bf6 {[%clk 0:01:48]} 25. Nd2 {[%clk 0:01:12]}  Rb8 {[%clk 0:01:43]} 26. Be3 {[%clk 0:01:08]}  Rb2 {[%clk 0:01:41]} 27. c5 {[%clk 0:01:08]}  dxc5 {[%clk 0:01:22]} 28. Rxc5 {[%clk 0:01:03]}  Re6 {[%clk 0:01:15]} 29. Kf3 {[%clk 0:01:03]}  h5 {[%clk 0:01:03]} 30. h4 {[%clk 0:01:02]}  Rb5 {[%clk 0:00:59]} 31. Rc1 {[%clk 0:00:59]}  Be7 {[%clk 0:00:58]} 32. Ra1 {[%clk 0:00:47]}  Bc5 {[%clk 0:00:53]} 33. Ra8+ {[%clk 0:00:47]}  Kg7 {[%clk 0:00:52]} 34. Bf4 {[%clk 0:00:47]}  Bd4 {[%clk 0:00:48]} 35. Nc4 {[%clk 0:00:45]}  Rc5 {[%clk 0:00:43]} 36. Ne3 {[%clk 0:00:45]}  Be5 {[%clk 0:00:41]} 37. Bg5 {[%clk 0:00:39]}  Rc3 {[%clk 0:00:38]} 38. Rc8 {[%clk 0:00:35]}  c5 {[%clk 0:00:31]} 39. Kg2 {[%clk 0:00:33]}  f6 {[%clk 0:00:22]} 40. Bf4 {[%clk 0:00:25]}  Bxf4 {[%clk 0:00:22]} 41. gxf4 {[%clk 0:00:25]}  Rxe4 {[%clk 0:00:20]} 42. Rc7+ {[%clk 0:00:25]}  Kf8 {[%clk 0:00:18]} 43. Nd5 {[%clk 0:00:25]}  Rc2 {[%clk 0:00:18]} 44. e3 {[%clk 0:00:23]}  Re6 {[%clk 0:00:18]} 45. f5 {[%clk 0:00:22]}  gxf5 {[%clk 0:00:17]} 46. Kf3 {[%clk 0:00:22]}  c4 {[%clk 0:00:16]} 47. Nf4 {[%clk 0:00:21]}  Rd6 {[%clk 0:00:15]} 48. Nxh5 {[%clk 0:00:20]}  Rdd2 {[%clk 0:00:14]} 49. Nxf6 {[%clk 0:00:15]}  Rxf2+ {[%clk 0:00:14]} 50. Kg3 {[%clk 0:00:16]}  Rf1 {[%clk 0:00:10]} 51. Rd7 {[%clk 0:00:15]}  Re2 {[%clk 0:00:10]} 52. Nh7+ {[%clk 0:00:15]}  Kg8 {[%clk 0:00:10]} 53. Nf6+ {[%clk 0:00:15]}  Kf8 {[%clk 0:00:10]} 54. Nh7+ {[%clk 0:00:15]}  Ke8 {[%clk 0:00:11]} 55. Nf6+ {[%clk 0:00:15]}  Kf8 {[%clk 0:00:11]} 1/2-1/2


[Site "https://www.chess.com"]

[Event "Titled Tuesday Blitz November 16 2021"]
[White "Martinez Alcantara, Jose Eduardo"]
[Black "Alavi, Sayed Javad"]
[WhiteFideId "3805662"]
[BlackFideId "12500607"]
[WhiteElo "2690"]
[BlackElo "2495"]
[Result "1-0"]
[Round "07"]
[TimeControl "180+1"]
[Date "2021.11.16"]
[WhiteClock "0:00:26"]
[BlackClock "0:00:04"]

1. e4 {[%clk 0:03:00]}  e5 {[%clk 0:02:57]} 2. Nf3 {[%clk 0:02:54]}  Nc6 {[%clk 0:02:54]} 3. Bb5 {[%clk 0:02:54]}  a6 {[%clk 0:02:52]} 4. Ba4 {[%clk 0:02:54]}  d6 {[%clk 0:02:52]} 5. c3 {[%clk 0:02:54]}  Bd7 {[%clk 0:02:52]} 6. d4 {[%clk 0:02:53]}  g6 {[%clk 0:02:51]} 7. Be3 {[%clk 0:02:51]}  Bg7 {[%clk 0:02:49]} 8. Nbd2 {[%clk 0:02:51]}  Nge7 {[%clk 0:02:47]} 9. h4 {[%clk 0:02:47]}  h6 {[%clk 0:02:40]} 10. Nf1 {[%clk 0:02:44]}  O-O {[%clk 0:02:36]} 11. Ng3 {[%clk 0:02:36]}  exd4 {[%clk 0:02:24]} 12. cxd4 {[%clk 0:02:36]}  Bg4 {[%clk 0:02:24]} 13. Qd2 {[%clk 0:02:32]}  h5 {[%clk 0:02:01]} 14. Bb3 {[%clk 0:02:27]}  d5 {[%clk 0:01:52]} 15. e5 {[%clk 0:02:26]}  Nf5 {[%clk 0:01:48]} 16. Nxf5 {[%clk 0:02:22]}  Bxf5 {[%clk 0:01:49]} 17. Bc2 {[%clk 0:02:13]}  Ne7 {[%clk 0:01:42]} 18. Bh6 {[%clk 0:01:56]}  Qd7 {[%clk 0:01:26]} 19. Bxg7 {[%clk 0:01:51]}  Kxg7 {[%clk 0:01:27]} 20. Bxf5 {[%clk 0:01:51]}  Nxf5 {[%clk 0:01:25]} 21. Rc1 {[%clk 0:01:42]}  Qb5 {[%clk 0:01:11]} 22. Rc5 {[%clk 0:01:32]}  Qd7 {[%clk 0:01:10]} 23. O-O {[%clk 0:01:30]}  c6 {[%clk 0:01:10]} 24. a4 {[%clk 0:01:29]}  Rfe8 {[%clk 0:01:07]} 25. a5 {[%clk 0:01:29]}  Qe7 {[%clk 0:01:04]} 26. g3 {[%clk 0:01:23]}  f6 {[%clk 0:01:02]} 27. Rc3 {[%clk 0:01:23]}  fxe5 {[%clk 0:00:58]} 28. dxe5 {[%clk 0:01:21]}  Rad8 {[%clk 0:00:55]} 29. Rb3 {[%clk 0:01:19]}  d4 {[%clk 0:00:52]} 30. Re1 {[%clk 0:01:13]}  c5 {[%clk 0:00:49]} 31. Rb6 {[%clk 0:01:11]}  c4 {[%clk 0:00:44]} 32. Re4 {[%clk 0:01:05]}  d3 {[%clk 0:00:33]} 33. Rxc4 {[%clk 0:00:58]}  Rf8 {[%clk 0:00:23]} 34. Ng5 {[%clk 0:00:50]}  Qxe5 {[%clk 0:00:14]} 35. Rc7+ {[%clk 0:00:27]}  Qxc7 {[%clk 0:00:03]} 36. Ne6+ {[%clk 0:00:26]}  Kh7 {[%clk 0:00:04]} 37. Nxc7 {[%clk 0:00:26]} 1-0


[Site "https://www.chess.com"]

[Event "Titled Tuesday Blitz November 16 2021"]
[White "Ozen, Bahadir"]
[Black "Le, Tuan Minh"]
[WhiteFideId "6337058"]
[BlackFideId "12401153"]
[WhiteElo "2503"]
[BlackElo "2450"]
[Result "1/2-1/2"]
[Round "07"]
[TimeControl "180+1"]
[Date "2021.11.16"]
[WhiteClock "0:00:04"]
[BlackClock "0:00:09"]

1. c4 {[%clk 0:03:00]}  c6 {[%clk 0:02:59]} 2. Nf3 {[%clk 0:02:59]}  d5 {[%clk 0:03:00]} 3. e3 {[%clk 0:03:00]}  Nf6 {[%clk 0:03:00]} 4. Nc3 {[%clk 0:03:00]}  a6 {[%clk 0:03:01]} 5. d4 {[%clk 0:02:47]}  Bf5 {[%clk 0:03:00]} 6. Bd3 {[%clk 0:02:47]}  Bg6 {[%clk 0:03:00]} 7. O-O {[%clk 0:02:42]}  e6 {[%clk 0:03:00]} 8. b3 {[%clk 0:02:37]}  Nbd7 {[%clk 0:02:59]} 9. Bb2 {[%clk 0:02:36]}  Bd6 {[%clk 0:02:59]} 10. Qc2 {[%clk 0:02:29]}  b5 {[%clk 0:02:55]} 11. Bxg6 {[%clk 0:01:51]}  hxg6 {[%clk 0:02:55]} 12. h3 {[%clk 0:01:51]}  Be7 {[%clk 0:02:34]} 13. Rac1 {[%clk 0:01:40]}  O-O {[%clk 0:02:33]} 14. cxd5 {[%clk 0:01:36]}  cxd5 {[%clk 0:02:33]} 15. a4 {[%clk 0:01:36]}  Qb6 {[%clk 0:02:30]} 16. Qd3 {[%clk 0:01:32]}  Rfb8 {[%clk 0:02:26]} 17. axb5 {[%clk 0:01:30]}  axb5 {[%clk 0:02:26]} 18. Ra1 {[%clk 0:01:31]}  b4 {[%clk 0:02:08]} 19. Rxa8 {[%clk 0:01:28]}  Rxa8 {[%clk 0:02:09]} 20. Na4 {[%clk 0:01:28]}  Qb7 {[%clk 0:02:08]} 21. Rc1 {[%clk 0:01:24]}  Rc8 {[%clk 0:02:09]} 22. Qb1 {[%clk 0:01:10]}  Ne4 {[%clk 0:02:03]} 23. Rxc8+ {[%clk 0:01:08]}  Qxc8 {[%clk 0:02:04]} 24. Qc1 {[%clk 0:01:08]}  Qa6 {[%clk 0:02:02]} 25. Qc2 {[%clk 0:01:05]}  Bd6 {[%clk 0:01:59]} 26. g3 {[%clk 0:01:03]}  f6 {[%clk 0:01:17]} 27. Kg2 {[%clk 0:01:02]}  g5 {[%clk 0:01:16]} 28. Ne1 {[%clk 0:01:02]}  f5 {[%clk 0:00:51]} 29. Nd3 {[%clk 0:00:53]}  g4 {[%clk 0:00:48]} 30. hxg4 {[%clk 0:00:35]}  fxg4 {[%clk 0:00:49]} 31. Nac5 {[%clk 0:00:35]}  Qc8 {[%clk 0:00:47]} 32. Qe2 {[%clk 0:00:34]}  Ndf6 {[%clk 0:00:47]} 33. Nxb4 {[%clk 0:00:25]}  Ng5 {[%clk 0:00:39]} 34. Nbd3 {[%clk 0:00:19]}  Qe8 {[%clk 0:00:38]} 35. Nf4 {[%clk 0:00:17]}  Kf7 {[%clk 0:00:27]} 36. Qa6 {[%clk 0:00:14]}  Bxf4 {[%clk 0:00:20]} 37. exf4 {[%clk 0:00:14]}  Nge4 {[%clk 0:00:21]} 38. Nxe4 {[%clk 0:00:09]}  Nxe4 {[%clk 0:00:22]} 39. Qe2 {[%clk 0:00:09]}  Nf6 {[%clk 0:00:20]} 40. Ba3 {[%clk 0:00:09]}  Qb8 {[%clk 0:00:19]} 41. Qd3 {[%clk 0:00:06]}  Qh8 {[%clk 0:00:18]} 42. Bd6 {[%clk 0:00:04]}  Ne4 {[%clk 0:00:18]} 43. Be5 {[%clk 0:00:04]}  Qa8 {[%clk 0:00:15]} 44. f5 {[%clk 0:00:04]}  Qa2 {[%clk 0:00:13]} 45. fxe6+ {[%clk 0:00:03]}  Kxe6 {[%clk 0:00:14]} 46. Qe3 {[%clk 0:00:04]}  Qc2 {[%clk 0:00:14]} 47. b4 {[%clk 0:00:04]}  g5 {[%clk 0:00:14]} 48. b5 {[%clk 0:00:04]}  Qb2 {[%clk 0:00:14]} 49. b6 {[%clk 0:00:04]}  Qxb6 {[%clk 0:00:15]} 50. Qa3 {[%clk 0:00:04]}  Kd7 {[%clk 0:00:09]} 51. Qa4+ {[%clk 0:00:03]}  Qc6 {[%clk 0:00:09]} 52. Qa7+ {[%clk 0:00:04]}  Kc8 {[%clk 0:00:08]} 53. Qf7 {[%clk 0:00:03]}  Qc3 {[%clk 0:00:07]} 54. Qf5+ {[%clk 0:00:03]}  Kb7 {[%clk 0:00:07]} 55. Qxg4 {[%clk 0:00:03]}  Qc4 {[%clk 0:00:04]} 56. Qd7+ {[%clk 0:00:03]}  Ka6 {[%clk 0:00:05]} 57. Qf5 {[%clk 0:00:04]}  Nd2 {[%clk 0:00:05]} 58. Qe6+ {[%clk 0:00:04]}  Ka5 {[%clk 0:00:05]} 59. Qf5 {[%clk 0:00:03]}  g4 {[%clk 0:00:03]} 60. Qxg4 {[%clk 0:00:02]}  Qf1+ {[%clk 0:00:04]} 61. Kh2 {[%clk 0:00:03]}  Qxf2+ {[%clk 0:00:04]} 62. Kh3 {[%clk 0:00:04]}  Nf3 {[%clk 0:00:05]} 63. Bc7+ {[%clk 0:00:03]}  Kb4 {[%clk 0:00:04]} 64. Bd6+ {[%clk 0:00:03]}  Kc3 {[%clk 0:00:04]} 65. Qf4 {[%clk 0:00:03]}  Kd3 {[%clk 0:00:03]} 66. Kg4 {[%clk 0:00:03]}  Ke2 {[%clk 0:00:04]} 67. Be5 {[%clk 0:00:03]}  Nh2+ {[%clk 0:00:04]} 68. Kf5 {[%clk 0:00:04]}  Nf3 {[%clk 0:00:04]} 69. g4 {[%clk 0:00:04]}  Qg2 {[%clk 0:00:05]} 70. Ke6 {[%clk 0:00:03]}  Nd2 {[%clk 0:00:04]} 71. g5 {[%clk 0:00:02]}  Qh3+ {[%clk 0:00:04]} 72. Qf5 {[%clk 0:00:02]}  Qa3 {[%clk 0:00:04]} 73. g6 {[%clk 0:00:02]}  Qa6+ {[%clk 0:00:05]} 74. Bd6 {[%clk 0:00:02]}  Ne4 {[%clk 0:00:05]} 75. Qxd5 {[%clk 0:00:03]}  Nc3 {[%clk 0:00:04]} 76. Qe5+ {[%clk 0:00:02]}  Kd3 {[%clk 0:00:04]} 77. d5 {[%clk 0:00:03]}  Nb5 {[%clk 0:00:04]} 78. g7 {[%clk 0:00:03]}  Nd4+ {[%clk 0:00:04]} 79. Qxd4+ {[%clk 0:00:02]}  Kxd4 {[%clk 0:00:05]} 80. g8=Q {[%clk 0:00:03]}  Qe2+ {[%clk 0:00:06]} 81. Kd7 {[%clk 0:00:02]}  Qb5+ {[%clk 0:00:06]} 82. Ke7 {[%clk 0:00:03]}  Qe2+ {[%clk 0:00:07]} 83. Qe6 {[%clk 0:00:03]}  Qh5 {[%clk 0:00:07]} 84. Be5+ {[%clk 0:00:02]}  Kc5 {[%clk 0:00:06]} 85. d6 {[%clk 0:00:03]}  Qh7+ {[%clk 0:00:06]} 86. Qf7 {[%clk 0:00:03]}  Qh4+ {[%clk 0:00:07]} 87. Ke6 {[%clk 0:00:04]}  Qc4+ {[%clk 0:00:07]} 88. Kf6 {[%clk 0:00:05]}  Qh4+ {[%clk 0:00:07]} 89. Kg6 {[%clk 0:00:04]}  Qg4+ {[%clk 0:00:08]} 90. Kh7 {[%clk 0:00:04]}  Qe4+ {[%clk 0:00:07]} 91. Qg6 {[%clk 0:00:03]}  Qxe5 {[%clk 0:00:07]} 92. d7 {[%clk 0:00:04]}  Qe7+ {[%clk 0:00:07]} 93. Qg7 {[%clk 0:00:04]}  Qd8 {[%clk 0:00:07]} 94. Qe5+ {[%clk 0:00:02]}  Kc6 {[%clk 0:00:08]} 95. Qe6+ {[%clk 0:00:03]}  Kc7 {[%clk 0:00:08]} 96. Kg6 {[%clk 0:00:03]}  Qxd7 {[%clk 0:00:08]} 97. Qxd7+ {[%clk 0:00:04]}  Kxd7 {[%clk 0:00:09]} 1/2-1/2


[Site "https://www.chess.com"]

[Event "Titled Tuesday Blitz November 16 2021"]
[White "Pour Agha Bala, Amirreza"]
[Black "Saydaliev, Saidakbar"]
[WhiteFideId "12572896"]
[BlackFideId "14203693"]
[WhiteElo "2313"]
[BlackElo "2335"]
[Result "0-1"]
[Round "07"]
[TimeControl "180+1"]
[Date "2021.11.16"]
[WhiteClock "0:00:39"]
[BlackClock "0:00:38"]

1. d4 {[%clk 0:03:00]}  Nf6 {[%clk 0:02:59]} 2. c4 {[%clk 0:03:00]}  c5 {[%clk 0:02:59]} 3. d5 {[%clk 0:02:59]}  g6 {[%clk 0:03:00]} 4. Nc3 {[%clk 0:02:58]}  Bg7 {[%clk 0:03:01]} 5. e4 {[%clk 0:02:58]}  d6 {[%clk 0:03:02]} 6. f4 {[%clk 0:02:58]}  O-O {[%clk 0:02:55]} 7. Nf3 {[%clk 0:02:57]}  e6 {[%clk 0:02:55]} 8. Bd3 {[%clk 0:02:56]}  exd5 {[%clk 0:02:55]} 9. cxd5 {[%clk 0:02:57]}  Na6 {[%clk 0:02:40]} 10. O-O {[%clk 0:02:55]}  Nc7 {[%clk 0:02:38]} 11. h3 {[%clk 0:02:50]}  Re8 {[%clk 0:02:37]} 12. Re1 {[%clk 0:02:46]}  Rb8 {[%clk 0:02:29]} 13. a4 {[%clk 0:02:43]}  a6 {[%clk 0:02:22]} 14. a5 {[%clk 0:02:40]}  Bd7 {[%clk 0:02:21]} 15. g4 {[%clk 0:02:37]}  Bb5 {[%clk 0:02:20]} 16. Kg2 {[%clk 0:02:31]}  Qd7 {[%clk 0:02:11]} 17. Qc2 {[%clk 0:02:21]}  Rbc8 {[%clk 0:02:00]} 18. Be3 {[%clk 0:02:17]}  Bxd3 {[%clk 0:01:41]} 19. Qxd3 {[%clk 0:02:18]}  Nb5 {[%clk 0:01:41]} 20. e5 {[%clk 0:02:06]}  c4 {[%clk 0:01:22]} 21. Qd2 {[%clk 0:01:56]}  Nxc3 {[%clk 0:01:20]} 22. bxc3 {[%clk 0:01:55]}  dxe5 {[%clk 0:01:15]} 23. fxe5 {[%clk 0:01:53]}  Nxd5 {[%clk 0:01:14]} 24. Rad1 {[%clk 0:01:52]}  Nxe3+ {[%clk 0:01:12]} 25. Qxe3 {[%clk 0:01:52]}  Qc6 {[%clk 0:01:06]} 26. Kf2 {[%clk 0:01:49]}  Qb5 {[%clk 0:01:04]} 27. Rb1 {[%clk 0:01:41]}  Qxa5 {[%clk 0:00:53]} 28. Rxb7 {[%clk 0:01:40]}  Rc7 {[%clk 0:00:53]} 29. Rbb1 {[%clk 0:01:30]}  Rce7 {[%clk 0:00:49]} 30. Qd4 {[%clk 0:01:29]}  Bxe5 {[%clk 0:00:44]} 31. Nxe5 {[%clk 0:01:16]}  Rxe5 {[%clk 0:00:45]} 32. Qxc4 {[%clk 0:01:11]}  Rxe1 {[%clk 0:00:38]} 33. Rxe1 {[%clk 0:01:10]}  Qb6+ {[%clk 0:00:38]} 34. Qd4 {[%clk 0:00:42]}  Qxd4+ {[%clk 0:00:37]} 35. cxd4 {[%clk 0:00:43]}  Rxe1 {[%clk 0:00:38]} 36. Kxe1 {[%clk 0:00:44]}  Kf8 {[%clk 0:00:38]} 37. g5 {[%clk 0:00:41]}  Ke7 {[%clk 0:00:38]} 38. Kd2 {[%clk 0:00:42]}  Kd6 {[%clk 0:00:38]} 39. Kc2 {[%clk 0:00:40]}  Kd5 {[%clk 0:00:39]} 40. Kd3 {[%clk 0:00:39]}  a5 {[%clk 0:00:38]} 0-1


[Site "https://www.chess.com"]

[Event "Titled Tuesday Blitz November 16 2021"]
[White "Pranav, V"]
[Black "Paravyan, David"]
[WhiteFideId "25060783"]
[BlackFideId "4194985"]
[WhiteElo "2351"]
[BlackElo "2639"]
[Result "1/2-1/2"]
[Round "07"]
[TimeControl "180+1"]
[Date "2021.11.16"]
[WhiteClock "0:00:07"]
[BlackClock "0:00:12"]

1. e4 {[%clk 0:03:00]}  c5 {[%clk 0:03:00]} 2. Nf3 {[%clk 0:03:00]}  d6 {[%clk 0:03:00]} 3. Bb5+ {[%clk 0:03:00]}  Bd7 {[%clk 0:03:00]} 4. Bxd7+ {[%clk 0:03:00]}  Qxd7 {[%clk 0:03:01]} 5. O-O {[%clk 0:03:01]}  Nc6 {[%clk 0:02:59]} 6. c3 {[%clk 0:03:00]}  d5 {[%clk 0:02:59]} 7. e5 {[%clk 0:02:59]}  d4 {[%clk 0:02:57]} 8. cxd4 {[%clk 0:02:54]}  cxd4 {[%clk 0:02:58]} 9. d3 {[%clk 0:02:55]}  e6 {[%clk 0:02:58]} 10. Nbd2 {[%clk 0:02:55]}  Nge7 {[%clk 0:02:56]} 11. Ne4 {[%clk 0:02:53]}  Ng6 {[%clk 0:02:54]} 12. Re1 {[%clk 0:02:31]}  Ngxe5 {[%clk 0:02:45]} 13. Nxe5 {[%clk 0:02:31]}  Nxe5 {[%clk 0:02:46]} 14. f4 {[%clk 0:02:32]}  Nc6 {[%clk 0:02:37]} 15. f5 {[%clk 0:02:32]}  Be7 {[%clk 0:02:19]} 16. fxe6 {[%clk 0:01:54]}  Qxe6 {[%clk 0:02:20]} 17. Bg5 {[%clk 0:01:53]}  Kf8 {[%clk 0:01:15]} 18. Rc1 {[%clk 0:01:24]}  Bxg5 {[%clk 0:01:01]} 19. Nxg5 {[%clk 0:01:23]}  Qd5 {[%clk 0:00:51]} 20. Qh5 {[%clk 0:01:18]}  Kg8 {[%clk 0:00:32]} 21. Rc5 {[%clk 0:01:14]}  Qd7 {[%clk 0:00:30]} 22. Rf1 {[%clk 0:01:10]}  Rf8 {[%clk 0:00:27]} 23. Ne4 {[%clk 0:00:50]}  f6 {[%clk 0:00:17]} 24. Qh4 {[%clk 0:00:21]}  h5 {[%clk 0:00:12]} 25. Rxh5 {[%clk 0:00:08]}  Rxh5 {[%clk 0:00:12]} 26. Qxh5 {[%clk 0:00:09]}  Ne5 {[%clk 0:00:10]} 27. Qh4 {[%clk 0:00:08]}  Qg4 {[%clk 0:00:06]} 28. Qxg4 {[%clk 0:00:06]}  Nxg4 {[%clk 0:00:07]} 29. Rc1 {[%clk 0:00:06]}  Ne5 {[%clk 0:00:05]} 30. Nf2 {[%clk 0:00:06]}  Re8 {[%clk 0:00:04]} 31. Kf1 {[%clk 0:00:06]}  Nc6 {[%clk 0:00:04]} 32. Ne4 {[%clk 0:00:06]}  Nb4 {[%clk 0:00:04]} 33. Nf2 {[%clk 0:00:04]}  Re3 {[%clk 0:00:03]} 34. Rc7 {[%clk 0:00:01]}  Nxd3 {[%clk 0:00:03]} 35. Nxd3 {[%clk 0:00:01]}  Rxd3 {[%clk 0:00:04]} 36. Rxb7 {[%clk 0:00:02]}  Rd2 {[%clk 0:00:04]} 37. Rxa7 {[%clk 0:00:01]}  Rxb2 {[%clk 0:00:05]} 38. Rd7 {[%clk 0:00:01]}  Rd2 {[%clk 0:00:06]} 39. a4 {[%clk 0:00:02]}  d3 {[%clk 0:00:06]} 40. a5 {[%clk 0:00:02]}  Kh7 {[%clk 0:00:07]} 41. a6 {[%clk 0:00:02]}  Ra2 {[%clk 0:00:06]} 42. Rxd3 {[%clk 0:00:02]}  Rxa6 {[%clk 0:00:06]} 43. Rh3+ {[%clk 0:00:03]}  Kg6 {[%clk 0:00:07]} 44. Rf3 {[%clk 0:00:04]}  Kf7 {[%clk 0:00:08]} 45. Kf2 {[%clk 0:00:04]}  g5 {[%clk 0:00:08]} 46. h3 {[%clk 0:00:05]}  Kg6 {[%clk 0:00:09]} 47. Re3 {[%clk 0:00:05]}  Ra2+ {[%clk 0:00:09]} 48. Kg3 {[%clk 0:00:05]}  f5 {[%clk 0:00:10]} 49. Re6+ {[%clk 0:00:04]}  Kh5 {[%clk 0:00:10]} 50. Re8 {[%clk 0:00:05]}  f4+ {[%clk 0:00:10]} 51. Kf3 {[%clk 0:00:05]}  Ra3+ {[%clk 0:00:10]} 52. Kf2 {[%clk 0:00:05]}  Ra2+ {[%clk 0:00:11]} 53. Kf3 {[%clk 0:00:05]}  Ra3+ {[%clk 0:00:12]} 54. Kf2 {[%clk 0:00:06]}  Ra2+ {[%clk 0:00:12]} 55. Kf3 {[%clk 0:00:07]} 1/2-1/2


[Site "https://www.chess.com"]

[Event "Titled Tuesday Blitz November 16 2021"]
[White "Rustemov, Alexander"]
[Black "Alavkin, Arseny"]
[WhiteFideId "4119002"]
[BlackFideId "4120612"]
[WhiteElo "2773"]
[BlackElo "2391"]
[Result "0-1"]
[Round "07"]
[TimeControl "180+1"]
[Date "2021.11.16"]
[WhiteClock "0:00:02"]
[BlackClock "0:00:16"]

1. d4 {[%clk 0:03:00]}  Nf6 {[%clk 0:02:51]} 2. c4 {[%clk 0:03:00]}  g6 {[%clk 0:02:51]} 3. g3 {[%clk 0:02:59]}  Bg7 {[%clk 0:02:50]} 4. Bg2 {[%clk 0:03:00]}  O-O {[%clk 0:02:50]} 5. Nc3 {[%clk 0:02:59]}  d6 {[%clk 0:02:51]} 6. Nf3 {[%clk 0:02:59]}  Nc6 {[%clk 0:02:50]} 7. O-O {[%clk 0:02:59]}  Bf5 {[%clk 0:02:48]} 8. Ne1 {[%clk 0:02:56]}  Qc8 {[%clk 0:02:44]} 9. e4 {[%clk 0:02:54]}  Bh3 {[%clk 0:02:43]} 10. f3 {[%clk 0:02:53]}  Bxg2 {[%clk 0:02:43]} 11. Kxg2 {[%clk 0:02:53]}  e5 {[%clk 0:02:44]} 12. d5 {[%clk 0:02:53]}  Nd4 {[%clk 0:02:44]} 13. Nc2 {[%clk 0:02:42]}  Nd7 {[%clk 0:02:16]} 14. Be3 {[%clk 0:02:38]}  Nxc2 {[%clk 0:02:16]} 15. Qxc2 {[%clk 0:02:38]}  f5 {[%clk 0:02:17]} 16. b4 {[%clk 0:02:31]}  a5 {[%clk 0:02:10]} 17. a3 {[%clk 0:02:29]}  axb4 {[%clk 0:02:10]} 18. axb4 {[%clk 0:02:29]}  Rxa1 {[%clk 0:02:09]} 19. Rxa1 {[%clk 0:02:24]}  f4 {[%clk 0:02:09]} 20. Bf2 {[%clk 0:02:23]}  Nf6 {[%clk 0:02:09]} 21. c5 {[%clk 0:02:10]}  g5 {[%clk 0:01:56]} 22. Qd3 {[%clk 0:02:03]}  g4 {[%clk 0:01:52]} 23. Rf1 {[%clk 0:01:16]}  Bh6 {[%clk 0:01:38]} 24. Bg1 {[%clk 0:01:08]}  gxf3+ {[%clk 0:01:34]} 25. Rxf3 {[%clk 0:01:06]}  Qg4 {[%clk 0:01:31]} 26. Rf1 {[%clk 0:00:54]}  Qg6 {[%clk 0:01:20]} 27. Qf3 {[%clk 0:00:51]}  fxg3 {[%clk 0:00:55]} 28. Qxg3 {[%clk 0:00:51]}  Bd2 {[%clk 0:00:55]} 29. Qxg6+ {[%clk 0:00:46]}  hxg6 {[%clk 0:00:56]} 30. Rf3 {[%clk 0:00:38]}  Bxc3 {[%clk 0:00:41]} 31. Rxc3 {[%clk 0:00:38]}  Nxe4 {[%clk 0:00:41]} 32. Rc2 {[%clk 0:00:30]}  Rf4 {[%clk 0:00:27]} 33. Be3 {[%clk 0:00:28]}  Rg4+ {[%clk 0:00:26]} 34. Kf3 {[%clk 0:00:28]}  Nf6 {[%clk 0:00:26]} 35. cxd6 {[%clk 0:00:24]}  cxd6 {[%clk 0:00:24]} 36. Rc8+ {[%clk 0:00:24]}  Kf7 {[%clk 0:00:20]} 37. Rc7+ {[%clk 0:00:25]}  Ke8 {[%clk 0:00:19]} 38. Rxb7 {[%clk 0:00:25]}  e4+ {[%clk 0:00:19]} 39. Kf2 {[%clk 0:00:23]}  Nxd5 {[%clk 0:00:20]} 40. b5 {[%clk 0:00:18]}  Rh4 {[%clk 0:00:19]} 41. Bg5 {[%clk 0:00:13]}  Rxh2+ {[%clk 0:00:18]} 42. Kg3 {[%clk 0:00:14]}  Rb2 {[%clk 0:00:18]} 43. Rb8+ {[%clk 0:00:07]}  Kd7 {[%clk 0:00:17]} 44. Rb7+ {[%clk 0:00:06]}  Ke6 {[%clk 0:00:17]} 45. Rb8 {[%clk 0:00:05]}  Rb3+ {[%clk 0:00:17]} 46. Kg4 {[%clk 0:00:05]}  Ke5 {[%clk 0:00:16]} 47. Bh6 {[%clk 0:00:05]}  Kd4 {[%clk 0:00:15]} 48. Bg7+ {[%clk 0:00:04]}  Kc5 {[%clk 0:00:16]} 49. Rc8+ {[%clk 0:00:03]}  Kxb5 {[%clk 0:00:16]} 50. Bd4 {[%clk 0:00:03]}  Rd3 {[%clk 0:00:15]} 51. Bf2 {[%clk 0:00:02]}  Rf3 {[%clk 0:00:15]} 52. Bg3 {[%clk 0:00:02]}  Ne3+ {[%clk 0:00:15]} 53. Kh4 {[%clk 0:00:01]}  Nf5+ {[%clk 0:00:15]} 54. Kg5 {[%clk 0:00:01]}  Rxg3+ {[%clk 0:00:16]} 55. Kf6 {[%clk 0:00:02]}  e3 {[%clk 0:00:16]} 56. Re8 {[%clk 0:00:02]}  Kc4 {[%clk 0:00:16]} 0-1


[Site "https://www.chess.com"]